fUSD/lending_fUSD_20250521
["ID","MTS","AMOUNT","RATE_DAILY","PERIOD"]
[361882278,1747864240467,-1000.0,0.00012521,2]
[361882279,1747864240477,-1000.0,0.00012521,2]
[361882280,1747864240487,-1000.0,0.00012521,2]
[361882281,1747864240497,-1000.0,0.00012521,2]
[361882282,1747864240507,-169.0,0.00012589,2]
[361882283,1747864240517,-500.0,0.00012607,2]
[361882284,1747864240528,-200.0,0.00012644,2]
[361882285,1747864240537,-250.0,0.00012644,2]
[361882286,1747864240548,-200.0,0.00012644,2]
[361882287,1747864240558,-200.0,0.00012644,2]
[361882288,1747864240567,-163.91,0.00012747,2]
[361882289,1747864240577,-420.0,0.00012951,2]
[361882290,1747864240587,-420.0,0.00012951,2]
[361882291,1747864240596,-1680.0,0.00012973,2]
[361882292,1747864240606,-255.0,0.00012981,2]
[361882293,1747864240616,-1500.0,0.00013068,2]
[361882294,1747864240626,-1500.0,0.00013068,2]
[361882295,1747864240636,-440.95956865,0.00013068,2]
[361882296,1747864240645,-1500.0,0.00013068,2]
[361882297,1747864240656,-1000.0,0.00013155,2]
[361882298,1747864240667,-153.12,0.00013289,2]
[361882299,1747864240677,-3038.67629656,0.00013368,2]
[361882300,1747864240687,-1520.65,0.00013531,2]
[361882301,1747864240697,-1000.0,0.00013599,2]
[361882302,1747864240707,-2000.0,0.00013616,2]
[361882303,1747864240716,-2000.0,0.00013616,2]
[361882304,1747864240727,-2000.0,0.00013616,2]
[361882305,1747864240736,-743.76893644,0.00013643,2]
[361882306,1747864240747,-238.39,0.00013698,2]
[361882307,1747864240757,-150.12,0.00013699,2]
[361882308,1747864240768,-150.12,0.00013699,2]
[361882309,1747864240778,-150.12,0.00013699,2]
[361882310,1747864240788,-150.12,0.00013699,2]
[361882311,1747864240799,-150.12,0.00013699,2]
[361882312,1747864240808,-150.12,0.00013699,2]
[361882313,1747864240819,-150.12,0.00013699,2]
[361882314,1747864240829,-150.12,0.00013699,2]
[361882315,1747864240839,-150.12,0.00013699,2]
[361882316,1747864240848,-150.12,0.00013699,2]
[361882317,1747864240858,-150.12,0.00013699,2]
[361882318,1747864240868,-150.12,0.00013699,2]
[361882319,1747864240878,-150.12,0.00013699,2]
[361882320,1747864240889,-150.13959118,0.00013699,2]
[361882321,1747864240899,-15564.8,0.00013699,2]
[361882322,1747864240910,-212.52,0.00013699,2]
[361882323,1747864240920,-9182.13,0.00013699,2]
[361882324,1747864240930,-530.76,0.00013699,2]
[361882325,1747864240940,-200.0,0.00013699,2]
[361882326,1747864240950,-500.0,0.00013699,2]
[361882327,1747864240960,-500.0,0.00013699,2]
[361882328,1747864240971,-500.0,0.00013699,2]
[361882329,1747864240980,-500.0,0.00013699,2]
[361882330,1747864240990,-500.0,0.00013699,2]
[361882331,1747864241000,-500.0,0.00013699,2]
[361882332,1747864241010,-500.0,0.00013699,2]
[361882333,1747864241019,-411.74740628,0.00013699,2]
[361882334,1747864241029,-500.0,0.00013699,2]
[361882335,1747864241039,-500.0,0.00013699,2]
[361882336,1747864241050,-500.0,0.00013699,2]
[361882337,1747864241059,-500.0,0.00013699,2]
[361882338,1747864241068,-500.0,0.00013699,2]
[361882339,1747864241080,-500.0,0.00013699,2]
[361882340,1747864241092,-500.0,0.00013699,2]
[361882341,1747864241102,-500.0,0.00013699,2]
[361882342,1747864241112,-500.0,0.00013699,2]
[361882343,1747864241123,-500.0,0.00013699,2]
[361882344,1747864241133,-500.0,0.00013699,2]
[361882345,1747864241143,-500.0,0.00013699,2]
[361882346,1747864241154,-471.6083132,0.00013699,2]
[361882347,1747864241166,-500.0,0.00013699,2]
[361882348,1747864241176,-500.0,0.00013699,2]
[361882349,1747864241186,-500.0,0.00013699,2]
[361882350,1747864241196,-500.0,0.00013699,2]
[361882351,1747864241205,-500.0,0.00013699,2]
[361882352,1747864241215,-500.0,0.00013699,2]
[361882353,1747864241225,-500.0,0.00013699,2]
[361882354,1747864241234,-500.0,0.00013699,2]
[361882355,1747864241244,-500.0,0.00013699,2]
[361882356,1747864241254,-500.0,0.00013699,2]
[361882357,1747864241264,-500.0,0.00013699,2]
[361882358,1747864241274,-155.0,0.00013699,2]
[361882359,1747864241284,-1500.0,0.00013703,2]
[361882360,1747864241294,-163.91,0.00013719,2]
[361882361,1747864241304,-1000.0,0.00013799,2]
[361882362,1747864241315,-1000.0,0.00013899,2]
[361882363,1747864241326,-1000.0,0.00013987,2]
[361882364,1747864241336,-153.12,0.00014071,2]
[361882365,1747864241346,-433.0,0.00014159,2]
[361882366,1747864241356,-2500.0,0.00014164,2]
[361882367,1747864241365,-2500.0,0.00014164,2]
[361882368,1747864241375,-2500.0,0.00014164,2]
[361882369,1747864241385,-587.0,0.0001422,2]
[361882370,1747864241395,-587.0,0.0001422,2]
[361882371,1747864241405,-1002.51619685,0.00014247,2]
[361882372,1747864241415,-1000.0,0.00014247,2]
[361882373,1747864241425,-1000.0,0.00014247,2]
[361882374,1747864241434,-1000.0,0.00014247,2]
[361882375,1747864241444,-1000.0,0.00014247,2]
[361882376,1747864241454,-1000.0,0.00014247,2]
[361882377,1747864241464,-1030.34875416,0.00014247,2]
[361882378,1747864241474,-1000.0,0.00014247,2]
[361882379,1747864241484,-288.3469218,0.00014247,2]
[361882380,1747864241493,-1027.1688006,0.00014247,2]
[361882381,1747864241503,-1000.0,0.00014247,2]
[361882382,1747864241512,-1000.0,0.00014247,2]
[361882383,1747864241523,-1000.0,0.00014247,2]
[361882384,1747864241533,-303.1598864,0.00014247,2]
[361882385,1747864241544,-1000.0,0.00014247,2]
[361882386,1747864241554,-2000.0,0.00014251,2]
[361882387,1747864241564,-2351.0,0.00014271,2]
[361882388,1747864241573,-9984.32410028,0.0001439,2]
[361882389,1747864241583,-250.0,0.0001467,2]
[361882390,1747864241593,-1225.22970311,0.00014712,2]
[361882391,1747864241603,-1544.20867989,0.00014712,2]
[361882392,1747864241613,-866.04117749,0.00014712,2]
[361882393,1747864241622,-1500.0,0.00014795,2]
[361882394,1747864241632,-1500.0,0.00014795,2]
[361882395,1747864241641,-1000.0,0.00014795,2]
[361882396,1747864241651,-1500.0,0.00014795,2]
[361882397,1747864241661,-627.01078207,0.00014795,2]
[361882398,1747864241671,-1000.0,0.00014795,2]
[361882399,1747864241680,-288.18476771,0.00014795,2]
[361882400,1747864241690,-546.04449425,0.00014795,2]
[361882401,1747864241700,-1500.0,0.00014795,2]
[361882402,1747864241709,-1500.0,0.00014795,2]
[361882403,1747864241719,-2002.63310205,0.00014798,2]
[361882404,1747864241729,-153.12,0.00014853,2]
[361882405,1747864241739,-8643.61661061,0.000149,2]
[361882406,1747864241749,-5667.43717358,0.00015,2]
[361882407,1747864241759,-238.39,0.00015068,2]
[361882408,1747864241769,-300.0,0.00015068,2]
[361882409,1747864241779,-2000.0,0.00015342,2]
[361882410,1747864241789,-1483.39811155,0.00015342,2]
[361882411,1747864241799,-2000.0,0.00015342,2]
[361882412,1747864241809,-500.0,0.00015342,2]
[361882413,1747864241820,-500.0,0.00015342,2]
[361882414,1747864241829,-736.0,0.00015456,2]
[361882415,1747864241840,-2017.96,0.00015512,2]
[361882416,1747864241851,-151.0,0.0001554,2]
[361882417,1747864241861,-151.0,0.00015551,2]
[361882418,1747864241871,-823.0,0.00015613,2]
[361882419,1747864241882,-823.0,0.00015613,2]
[361882420,1747864241892,-153.12,0.00015635,2]
[361882421,1747864241903,-3292.0,0.00015698,2]
[361882422,1747864241913,-1000.0,0.00015736,2]
[361882423,1747864241922,-1520.65,0.00015795,2]
[361882424,1747864241933,-2500.0,0.0001589,2]
[361882425,1747864241942,-2186.06290474,0.0001589,2]
[361882426,1747864241953,-200.0,0.0001634,2]
[361882427,1747864241963,-153.12,0.00016416,2]
[361882428,1747864241974,-238.39,0.00016438,2]
[361882429,1747864241983,-204.56,0.00016438,2]
[361882430,1747864241993,-300.0,0.00016438,2]
[361882431,1747864242003,-3000.0,0.00016438,2]
[361882432,1747864242012,-183.87,0.00016712,2]
[361882433,1747864242022,-1252.0,0.00016859,2]
[361882434,1747864242031,-3379.63551882,0.00016986,2]
[361882435,1747864242041,-1152.0,0.00017144,2]
[361882436,1747864242050,-1152.0,0.00017144,2]
[361882437,1747864242061,-4609.0,0.00017268,2]
[361882438,1747864242070,-1000.0,0.00017484,2]
[361882439,1747864242080,-164.27,0.00017605,2]
[361882440,1747864242092,-238.39,0.00017808,2]
[361882441,1747864242102,-432.9585783,0.0001799,2]
[361882442,1747864242112,-1520.65,0.00018059,2]
[361882443,1747864242123,-48279.49,0.00018356,2]
[361882444,1747864242133,-1278.0,0.00018394,2]
[361882445,1747864242142,-1003.18,0.00018404,2]
[361882446,1747864242152,-179.0,0.00018404,2]
[361882447,1747864242162,-1613.0,0.00018824,2]
[361882448,1747864242173,-350.0,0.00018824,2]
[361882449,1747864242306,-6453.0,0.00018994,2]
[361882450,1747864242316,-164.27,0.00019072,2]
[361882451,1747864242326,-238.39,0.00019178,2]
[361882452,1747864242336,-37293.22,0.000192,2]
[361882453,1747864242345,-1041.35,0.000192,2]
[361882454,1747864242355,-1000.0,0.00019232,2]
[361882455,1747864242365,-502.41821541,0.000197,2]
[361882456,1747864242374,-502.41821541,0.000197,2]
[361882457,1747864242384,-502.41821541,0.000197,2]
[361882458,1747864242393,-502.41821541,0.000197,2]
[361882459,1747864242403,-502.41821541,0.000197,2]
[361882460,1747864242412,-502.41821541,0.000197,2]
[361882461,1747864242421,-502.41821541,0.000197,2]
[361882462,1747864242430,-502.41821541,0.000197,2]
[361882463,1747864242440,-151.0,0.000197,2]
[361882464,1747864242450,-173.78043836,0.000199,2]
[361882465,1747864242461,-684.86508,0.0002,2]
[361882466,1747864242470,-4000.0,0.0002,2]
[361882467,1747864242480,-4000.0,0.0002,2]
[361882468,1747864242490,-4000.0,0.0002,2]
[361882469,1747864242499,-4000.0,0.0002,2]
[361882470,1747864242509,-4000.0,0.0002,2]
[361882471,1747864242518,-4000.0,0.0002,2]
[361882472,1747864242528,-151.0,0.0002,2]
[361882473,1747864242538,-151.0,0.0002,2]
[361882474,1747864242547,-154.488801,0.0002,2]
[361882475,1747864242558,-151.0,0.0002,2]
[361882476,1747864242567,-151.0,0.0002,2]
[361882477,1747864242577,-4000.0,0.0002,4]
[361882478,1747864242587,-563.57018,0.0002,2]
[361882479,1747864242597,-563.57018,0.0002,2]
[361882480,1747864242607,-151.0,0.0002,2]
[361882481,1747864242616,-151.0,0.0002,2]
[361882482,1747864242626,-212.52,0.00020187,2]
[361882483,1747864242636,-1520.65,0.00020323,2]
[361882484,1747864242646,-151.0,0.0002047,2]
[361882485,1747864242656,-151.0,0.0002047,2]
[361882486,1747864242666,-209.558063,0.0002047,2]
[361882487,1747864242676,-151.0,0.0002047,2]
[361882488,1747864242686,-164.27,0.00020539,2]
[361882490,1747864242695,-238.39,0.00020547,2]
[361882491,1747864242705,-185.47,0.00020548,2]
[361882492,1747864242715,-502.41821541,0.00020624,3]
[361882493,1747864242726,-2258.0,0.00020669,2]
[361882494,1747864242736,-1003.18,0.00020705,2]
[361882495,1747864242746,-169.99107907,0.00020758,2]
[361882496,1747864242755,-9035.0,0.00020894,2]
[361882497,1747864242765,-151.0,0.00020895,2]
[361882498,1747864242782,-155.496556,0.00020895,2]
[361882499,1747864242792,-155.496556,0.00020895,2]
[361882500,1747864242802,-151.0,0.00020895,2]
[361882501,1747864242813,-151.0,0.00020895,2]
[361882502,1747864242823,-631.128583,0.00020895,2]
[361882503,1747864242833,-631.128583,0.00020895,2]
[361882504,1747864242844,-170.74940338,0.00020904,2]
[361882505,1747864242854,-1000.0,0.00020981,2]
[361882506,1747864242865,-502.41821541,0.0002159,5]
[361882507,1747864242874,-238.39,0.00021917,2]
[361882508,1747864242884,-150.0,0.00021918,2]
[361882509,1747864242894,-170.34,0.00021945,30]
[361882510,1747864242904,-164.27,0.00022006,2]
[361882511,1747864242914,-502.41821541,0.00022555,7]
[361882512,1747864242923,-1520.65,0.00022587,2]
[361882513,1747864242933,-183.87,0.00022603,2]
[361882514,1747864242944,-867.0,0.00022694,2]
[361882515,1747864242955,-500.0,0.00022712,2]
[361882516,1747864242964,-4000.0,0.00022857,4]
[361882517,1747864242976,-500.0,0.00022904,2]
[361882518,1747864242986,-3761.0,0.00022983,2]
[361882519,1747864242995,-1003.18,0.00023005,2]
[361882520,1747864243005,-238.39,0.00023287,2]
[361882521,1747864243016,-164.27,0.00023473,2]
[361882522,1747864243026,-502.41821541,0.00023521,9]
[361882523,1747864243036,-299.66,0.00023836,2]
[361882524,1747864243046,-150.0,0.0002411,2]
[361882525,1747864243055,-502.41821541,0.00024486,11]
[361882527,1747864243066,-238.39,0.00024657,2]
[361882528,1747864243075,-1000.0,0.00024658,2]
[361882529,1747864243089,-500.0,0.00024773,2]
[361882531,1747864243100,-500.0,0.00024773,2]
[361882533,1747864243109,-153.59534455,0.00024773,2]
[361882536,1747864243119,-151.0,0.000248,7]
[361882540,1747864243131,-151.0,0.000248,7]
[361882541,1747864243141,-151.0,0.000248,7]
[361882542,1747864243150,-151.0,0.000248,7]
[361882543,1747864243163,-151.0,0.000248,7]
[361882544,1747864243173,-151.0,0.000248,7]
[361882545,1747864243183,-151.0,0.000248,7]
[361882546,1747864243193,-151.0,0.000248,7]
[361882547,1747864243203,-151.870372,0.000248,7]
[361882548,1747864243213,-151.0,0.000248,7]
[361882549,1747864243224,-151.0,0.000248,7]
[361882550,1747864243239,-151.0,0.000248,7]
[361882551,1747864243249,-151.0,0.000248,7]
[361882552,1747864243259,-151.0,0.000248,7]
[361882553,1747864243270,-151.468252,0.000248,7]
[361882554,1747864243279,-157.350786,0.000248,7]
[361882555,1747864243290,-157.350786,0.000248,7]
[361882556,1747864243300,-151.0,0.000248,7]
[361882557,1747864243310,-151.0,0.000248,7]
[361882558,1747864243320,-151.0,0.000248,7]
[361882559,1747864243330,-325.899888,0.000248,7]
[361882560,1747864243341,-325.899888,0.000248,7]
[361882561,1747864243352,-158.057291,0.000248,7]
[361882562,1747864243362,-151.0,0.000248,7]
[361882563,1747864243372,-151.0,0.000248,7]
[361882564,1747864243382,-151.0,0.000248,7]
[361882565,1747864243391,-151.0,0.000248,7]
[361882566,1747864243401,-157.248499,0.000248,7]
[361882567,1747864243411,-151.0,0.000248,7]
[361882568,1747864243421,-151.0,0.000248,7]
[361882569,1747864243431,-235054.10825,0.000248,2]
[361882570,1747864243441,-1520.65,0.00024851,2]
[361882571,1747864243452,-164.27,0.0002494,2]
[361882572,1747864243462,-1200.8,0.00025205,2]
[361882573,1747864243473,-267.0,0.0002526,2]
[361882574,1747864243483,-37293.22,0.000253,7]
[361882575,1747864243493,-1041.35,0.000253,7]
[361882576,1747864243503,-252.847541,0.000253,7]
[361882577,1747864243513,-151.0,0.000253,7]
[361882578,1747864243522,-151.0,0.000253,7]
[361882579,1747864243533,-155.496556,0.000253,7]
[361882580,1747864243543,-155.496556,0.000253,7]
[361882581,1747864243553,-631.128583,0.000253,7]
[361882582,1747864243563,-631.128583,0.000253,7]
[361882583,1747864243573,-151.0,0.000253,7]
[361882584,1747864243583,-151.0,0.000253,7]
[361882585,1747864243593,-1000.0,0.00025321,2]
[361882586,1747864243603,-660.19275359,0.00025321,2]
[361882587,1747864243613,-502.41821541,0.00025452,13]
[361882588,1747864243623,-329.50157488,0.00025469,2]
[361882589,1747864243633,-4000.0,0.00025714,4]
[361882590,1747864243644,-185.04913073,0.00025851,2]
[361882591,1747864243654,-1002.13207813,0.00025868,2]
[361882592,1747864243670,-563.57018,0.00025905,7]
[361882593,1747864243681,-563.57018,0.00025905,7]
[361882594,1747864243690,-151.0,0.00025905,7]
[361882595,1747864243701,-151.0,0.00025905,7]
[361882596,1747864243712,-238.39,0.00026027,2]
[361882597,1747864243722,-267.0,0.0002619,2]
[361882598,1747864243732,-150.0,0.00026301,2]
[361882599,1747864243741,-164.27,0.00026407,2]
[361882600,1747864243751,-502.41821541,0.00026417,15]
[361882601,1747864243762,-212.52,0.00026676,2]
[361882602,1747864243772,-500.0,0.00027096,2]
[361882603,1747864243782,-1520.65,0.00027115,2]
[361882604,1747864243792,-267.0,0.0002712,2]
[361882605,1747864243802,-502.41821541,0.00027383,17]
[361882606,1747864243812,-1000.0,0.00027397,15]
[361882607,1747864243821,-1000.0,0.00027397,15]
[361882608,1747864243831,-1000.0,0.00027397,15]
[361882609,1747864243842,-1000.0,0.00027397,15]
[361882610,1747864243852,-1000.0,0.00027397,15]
[361882611,1747864243862,-1000.0,0.00027397,15]
[361882612,1747864243873,-1000.0,0.00027397,15]
[361882613,1747864243883,-1000.0,0.00027397,15]
[361882614,1747864243893,-1000.0,0.00027397,15]
[361882615,1747864243903,-1000.0,0.00027397,15]
[361882616,1747864243913,-1000.0,0.00027397,15]
[361882617,1747864243924,-1000.0,0.00027397,15]
[361882618,1747864243934,-1000.0,0.00027397,15]
[361882619,1747864243944,-1000.0,0.00027397,15]
[361882620,1747864243954,-1000.0,0.00027397,15]
[361882621,1747864243964,-1000.0,0.00027397,15]
[361882622,1747864243974,-1143.98384673,0.00027397,15]
[361882623,1747864243984,-238.39,0.00027397,2]
[361882624,1747864243995,-267.0,0.0002804,2]
[361882625,1747864244005,-2853.77,0.00028203,2]
[361882626,1747864244016,-334.4,0.00028203,2]
[361882627,1747864244025,-150.99,0.00028203,2]
[361882628,1747864244035,-150.99,0.00028203,2]
[361882629,1747864244045,-9999.99,0.00028203,2]
[361882630,1747864244056,-999.99,0.00028203,2]
[361882631,1747864244065,-9999.99,0.00028203,2]
[361882632,1747864244075,-9613.23,0.00028203,10]
[361882633,1747864244089,-151.0,0.00028225,2]
[361882634,1747864244099,-151.0,0.00028225,2]
[361882635,1747864244120,-151.0,0.00028225,2]
[361882636,1747864244133,-151.0,0.00028225,2]
[361882637,1747864244143,-174.22099951,0.00028225,2]
[361882638,1747864244154,-668.65185757,0.00028225,2]
[361882639,1747864244165,-1199.20597015,0.00028225,2]
[361882640,1747864244176,-207.4,0.00028225,2]
[361882641,1747864244187,-502.41821541,0.00028348,18]
[361882642,1747864244197,-150.0,0.00028493,2]
[361882643,1747864244207,-183.87,0.00028493,2]
[361882644,1747864244218,-4000.0,0.00028571,4]
[361882645,1747864244228,-238.39,0.00028767,2]
[361882646,1747864244238,-693.3919763,0.00028773,2]
[361882647,1747864244249,-267.0,0.0002897,2]
[361882648,1747864244259,-37293.22,0.00029,7]
[361882649,1747864244269,-1041.35,0.00029,7]
[361882650,1747864244279,-151.8,0.00029,2]
[361882651,1747864244290,-663.91142528,0.00029199,5]
[361882652,1747864244300,-661.90169952,0.00029199,5]
[361882653,1747864244445,-0.00598005,0.000197,2]
[361882654,1747864245557,-150.99401995,0.000197,2]
[361882655,1747864245568,-151.0,0.00027397,7]
[361882656,1747864245579,-2.00972577,0.00029199,5]
[361882657,1747864245589,-502.41821541,0.00029314,20]
[361882658,1747864245599,-719.04747942,0.00029321,2]
[361882659,1747864245609,-1520.65,0.00029379,2]
[361882660,1747864245620,-156.587,0.00029594,2]
[361882661,1747864245630,-609.26881848,0.00029594,2]
[361882662,1747864245641,-215.0738,0.00029594,2]
[361882663,1747864245651,-169.99107907,0.00029617,2]
[361882664,1747864245661,-745.65223616,0.00029869,2]
[361882665,1747864245671,-267.0,0.000299,2]
[361882666,1747864245681,-170.74940338,0.00029909,2]
[361882667,1747864245692,-1583.08,0.0003,2]
[361882668,1747864245702,-238.39,0.00030136,2]
[361882669,1747864245712,-500.0,0.00030137,2]
[361882670,1747864245723,-500.0,0.00030137,2]
[361882671,1747864245734,-518.72121557,0.00030137,2]
[361882672,1747864245744,-502.41821541,0.00030279,22]
[361882673,1747864245754,-773.2413689,0.00030417,2]
[361882674,1747864245764,-150.0,0.00030685,2]
[361882675,1747864245774,-267.0,0.0003083,2]
[361882676,1747864245785,-162.380719,0.00030963,2]
[361882677,1747864245795,-223.0315306,0.00030963,2]
[361882678,1747864245805,-801.85129955,0.00030965,2]
[361882679,1747864245815,-200.0,0.00031211,2]
[361882680,1747864245825,-502.41821541,0.00031245,24]
[361882681,1747864245835,-4000.0,0.00031429,4]
[361882682,1747864245847,-238.39,0.00031506,2]
[361882683,1747864245857,-831.51979763,0.00031513,2]
[361882684,1747864245867,-1520.65,0.00031643,2]
[361882685,1747864245877,-267.0,0.0003176,2]
[361882686,1747864245888,-154.517,0.00032053,2]
[361882687,1747864245898,-1309.0,0.00032053,2]
[361882688,1747864245908,-934.0,0.00032053,2]
[361882689,1747864245919,-804.0,0.00032053,2]
[361882690,1747864245928,-631.0,0.00032053,2]
[361882691,1747864245938,-1258.0,0.00032053,2]
[361882692,1747864245961,-554.0,0.00032053,2]
[361882693,1747864245972,-1460.0,0.00032053,2]
[361882694,1747864245984,-585.0,0.00032053,2]
[361882695,1747864245993,-921.0,0.00032053,2]
[361882696,1747864246003,-243.0,0.00032053,2]
[361882697,1747864246014,-842.0,0.00032053,2]
[361882698,1747864246024,-198.0,0.00032053,2]
[361882699,1747864246034,-6834.0,0.00032053,2]
[361882700,1747864246044,-4047.0,0.00032053,2]
[361882701,1747864246055,-163.944,0.00032053,2]
[361882702,1747864246065,-880.0,0.00032053,2]
[361882703,1747864246076,-502.41821541,0.0003221,26]
[361882704,1747864246088,-168.3888056,0.00032332,2]
[361882705,1747864246099,-231.28369723,0.00032332,2]
[361882706,1747864246109,-18089.71914205,0.000324,7]
[361882711,1747864247565,-19203.50085795,0.000324,7]
[361882712,1747864247575,-1041.35,0.000324,7]
[361882713,1747864247584,-267.0,0.0003269,2]
[361882714,1747864247594,-238.39,0.00032876,2]
[361882715,1747864247604,-150.0,0.00032877,2]
[361882716,1747864247615,-7490.0,0.00033,6]
[361882717,1747864247626,-4913.97189702,0.00033,2]
[361882718,1747864247635,-198.0,0.00033,14]
[361882719,1747864247645,-212.52,0.00033165,2]
[361882720,1747864247655,-502.41821541,0.00033176,28]
[361882721,1747864247666,-8121.61894653,0.00033353,30]
[361882722,1747864247676,-817.58648209,0.00033484,2]
[361882723,1747864247688,-267.0,0.0003362,2]
[361882724,1747864247698,-187.78006525,0.00033701,2]
[361882725,1747864247709,-239.84119403,0.00033701,2]
[361882726,1747864247719,-155.28,0.000338,31]
[361882727,1747864247729,-155.28,0.000338,31]
[361882728,1747864247738,-1520.65,0.00033906,2]
[361882729,1747864247748,-1466.7,0.00034,5]
[361882730,1747864247759,-152.55,0.00034015,2]
[361882731,1747864247768,-502.41821541,0.00034141,30]
[361882732,1747864247779,-268.83628397,0.00034226,2]
[361882733,1747864247788,-239.1075,0.00034246,2]
[361882734,1747864247799,-238.39,0.00034246,2]
[361882735,1747864247815,-4000.0,0.00034286,4]
[361882736,1747864247825,-198.0,0.00034521,30]
[361882737,1747864247836,-267.0,0.0003455,2]
[361882738,1747864247846,-200.0,0.00034684,10]
[361882739,1747864247856,-151.0,0.000347,7]
[361882740,1747864247866,-151.0,0.000347,7]
[361882741,1747864247876,-17928.70891764,0.000347,7]
[361882743,1747864678207,-202.44574836,0.00013452,2]
[361882744,1747864682741,-200.0,0.00013452,2]
[361882745,1747864682764,-12.38429944,0.00013615,2]
[361882746,1747864686717,-216.78431943,0.00013615,2]
[361882755,1747865328382,-241.66276226,0.00013656,2]
[361882784,1747865432563,-8.33723774,0.00013656,2]
[361882787,1747865432574,-200.0,0.00013667,2]
[361882788,1747865432584,-150.0,0.00013698,2]
[361882791,1747865432595,-179.8,0.00013699,2]
[361882793,1747865432605,-200.0,0.00013886,2]
[361882795,1747865432615,-859.59868521,0.000147,2]
[361882797,1747865432625,-189.87880969,0.00014876,2]
[361882799,1747865432635,-250.0,0.00014976,2]
[361882800,1747865432644,-250.0,0.00015,2]
[361882801,1747865432654,-250.0,0.00015022,2]
[361882802,1747865432664,-200.0,0.00015022,2]
[361882803,1747865432675,-150.0,0.00015068,2]
[361882804,1747865432685,-150.0,0.00016438,2]
[361882805,1747865432695,-178.95,0.00016712,2]
[361882806,1747865432706,-300.0,0.00017,2]
[361882807,1747865432717,-150.0,0.00017808,2]
[361882808,1747865432727,-250.0,0.00018044,2]
[361882809,1747865432737,-182.61,0.00018333,2]
[361882810,1747865432747,-350.0,0.00019,2]
[361882811,1747865432757,-150.0,0.00019178,2]
[361882812,1747865432767,-1200.0,0.00019541,2]
[361882813,1747865432777,-30967.85574628,0.00019542,2]
[361882814,1747865432793,-668.65185757,0.00019936,2]
[361882815,1747865432803,-179.8,0.00020187,2]
[361882816,1747865432813,-193.63417257,0.00020484,2]
[361882817,1747865432823,-150.0,0.00020547,2]
[361882818,1747865432833,-206.63471781,0.000209,4]
[361882819,1747865432842,-400.0,0.00021,2]
[361882820,1747865432853,-300.0,0.00021391,2]
[361882821,1747865432863,-1680.0,0.00021391,2]
[361882822,1747865432873,-150.0,0.00021917,2]
[361882823,1747865432882,-206.63471765,0.00021948,6]
[361882824,1747865432892,-187.68,0.00022771,2]
[361882825,1747865432902,-362.94,0.00022881,2]
[361882826,1747865432912,-206.63471765,0.00022995,8]
[361882827,1747865432922,-450.0,0.00023,2]
[361882828,1747865432932,-150.0,0.00023249,2]
[361882829,1747865432942,-167.72,0.00023271,2]
[361882830,1747865432952,-150.0,0.00023287,2]
[361882831,1747865432962,-200.0,0.00023309,2]
[361882832,1747865432972,-1151.0,0.00023416,2]
[361882833,1747865432982,-525.26810546,0.00023439,2]
[361882834,1747865432992,-30034.94271719,0.0002344,2]
[361882836,1747865438106,-12994.13630989,0.0002344,2]